Workbook

Sheet Best_Buys
B2: Level 2 Best Buys Practice Created by Mr.Lafferty@mathsrevision.com
AZ7: =12*ROUND(RAND()*(17-7)+7,0)/100 -> 1.2 | BA7: Full supermarket 1 | BG7: =AZ7 -> 1.2
C8: Q1. | E8: Owen visits two supermarkets Prescos and Basda which have special deals on IRN - BRU. | AZ8: =ROUND(RAND()*(4-2)+2,0) -> 4 | BA8: Fraction Discount
E10: From which supermarket should he buy the IRN - BRU from OR are they both the same price.
AZ11: =AZ7/AZ8*(AZ8-1) -> 0.9 | BA11: Sale Price 1
E12: Pescos : Deal price is £ | AZ12: =ROUND(RAND()*(1-0)+0,0) -> 1
AZ13: =ROUND(IF(AZ12=0,(AZ11+ROUND(RAND()*(0.03-0.01)+0.01,2)),AZ11-(ROUND(RAND()*(0.03-0.01)+0.01,2))),2) -> 0.87
E14: Basda : Deal price is £ | AZ14: =ROUND(RAND()*(4-1)+1,0)*10 -> 40 | BA14: % discount super2 | BG14: =ROUND(100/AZ15*AZ13,1) -> 1.5 | BH14: Full supermarket 2
AZ15: =100-AZ14 -> 60 | BG15: =AZ14/100*BG14 -> 0.6 | BH15: Discount
AB16: 500 ml | AJ16: 500 ml | BG16: =BG14-BG15 -> 0.9 | BH16: Sale Price 2
Y18: ="Pesco's 1" -> Pesco's 1 | AI18: ="Basda 2" -> Basda 2
Y19: Normal Price £ | AE19: =AZ7 -> 1.2 | AI19: Normal Price £ | AO19: =BG14 -> 1.5
Y20: ="Now 1/"&AZ8&" OFF" -> Now 1/4 OFF | AI20: ="Now "&AZ14&" % OFF" -> Now 40 % OFF
AZ23: =12*ROUND(RAND()*(30-7)+7,0)/100 -> 2.64 | BA23: Full supermarket 1 | BG23: =AZ23 -> 2.64
C24: Q2. | E24: Caitlin visits two supermarkets Norrison and Sainsburgh which have special deals on Oranges. | AZ24: =ROUND(RAND()*(4-2)+2,0) -> 3 | BA24: Fraction Discount
AZ25: =AZ23/AZ24*(AZ24-1) -> 1.76 | BA25: Sale Price 1
E26: From which supermarket should she buy the Oranges from OR are they both the same price.
E28: Norrison : Deal price is £ | AZ28: =ROUND(RAND()*(1-0)+0,0) -> 0
AZ29: =ROUND(IF(AZ28=0,(AZ25+ROUND(RAND()*(0.03-0.01)+0.01,2)),AZ25-(ROUND(RAND()*(0.03-0.01)+0.01,2))),2) -> 1.78
E30: Sainsburgh : Deal price is £ | AZ30: =ROUND(RAND()*(4-1)+1,0)*10 -> 20 | BA30: % discount super2 | BG30: =ROUND(100/AZ31*AZ29,1) -> 2.2 | BH30: Full supermarket 2
AZ31: =100-AZ30 -> 80 | BG31: =AZ30/100*BG30 -> 0.44 | BH31: Discount
Y32: A bag of 5 oranges | AI32: A bag of 5 oranges | BG32: =BG30-BG31 -> 1.76 | BH32: Sale Price 2
Y34: ="Supermarket 1" -> Supermarket 1 | AI34: ="Supermarket 2" -> Supermarket 2
Y35: Was £ | AE35: =AZ23 -> 2.64 | AI35: Was £ | AO35: =BG30 -> 2.2
Y36: ="Now 1/"&AZ24&" OFF" -> Now 1/3 OFF | AI36: ="Now "&AZ30&" % OFF" -> Now 20 % OFF
AZ39: =ROUND(RAND()*(2-0.8)+0.8,1)*2 -> 2.4 | BA39: Full supermarket 1 | BG39: =AZ39 -> 2.4
C40: Q3. | E40: Aimee visits two shops Niceland and Auldi which have special deals on oven chips.. | AZ40: =ROUND(RAND()*(8-2)+2,0)*5 -> 15 | BA40: Fraction Discount
AZ41: =AZ39-AZ40/100*AZ39 -> 2.04 | BA41: Sale Price 1
E42: From which shop should she buy the oven chips from OR are they both the same price.
E44: Norrison : Deal price is £ | AZ44: =ROUND(RAND()*(1-0)+0,0) -> 1
AZ45: =ROUND(IF(AZ44=0,(AZ41+ROUND(RAND()*(0.03-0.01)+0.01,2)),AZ41-(ROUND(RAND()*(0.03-0.01)+0.01,2))),2) -> 2.03
E46: Sainsburgh : Deal price is £ | AZ46: =ROUND(RAND()*(4-1)+1,0)*10 -> 20 | BA46: % discount super2 | BG46: =ROUND(100/AZ47*AZ45,1) -> 2.5 | BH46: Full supermarket 2
AZ47: =100-AZ46 -> 80 | BG47: =AZ46/100*BG46 -> 0.5 | BH47: Discount
Y48: 2.25 kg bag | AI48: 2.25 kg bag | BG48: =BG46-BG47 -> 2 | BH48: Sale Price 2
Y50: ="Shop 1" -> Shop 1 | AI50: ="Shop 2" -> Shop 2
Y51: Was £ | AE51: =AZ39 -> 2.4 | AI51: Was £ | AO51: =BG46 -> 2.5
Y52: ="Now "&AZ40&" % OFF" -> Now 15 % OFF | AI52: ="Now "&AZ46&" % OFF" -> Now 20 % OFF

Sheet Harder_Best_Buys
B2: Level 2 Harder Best Buys Practice Created by Mr.Lafferty@mathsrevision.com
AZ4: =CONCATENATE(AZ5,BA6) -> 400g
AZ5: =AZ6/2 -> 400
AZ6: =ROUND(RAND()*(18-4)+4,0)*50 -> 800 | BA6: g
AZ7: =ROUND(RAND()*(0.8-0.35)+0.35,2)*2 -> 1.14 | BA7: Full supermarket 1
C8: Q4. | E8: ="Two local supermarkets have special deals on flour. Sean needs to buy "&AZ6&"g of flour to make a cake. " -> Two local supermarkets have special deals on flour. Sean needs to buy 800g of flour to make a cake.
E10: Calculate which deal is the best OR are they both the same.
AZ11: =AZ7/2 -> 0.57 | BA11: Price for 1
E12: Pescos : Deal price is £ | AZ12: =ROUND(RAND()*(1-0)+0,0) -> 0
AZ13: =ROUND(IF(AZ12=0,(0.7*AZ11),(0.65*AZ11)),2)*2 -> 0.8
E14: Basda : Deal price is £
AB15: =AZ4 -> 400g | AJ15: =AZ4 -> 400g
BG16: =1.5*AZ13 -> 1.2 | BH16: Sale Price 2
Y18: ="Pesco's 1" -> Pesco's 1 | AH18: ="Basda 2" -> Basda 2
Y19: Normal Price £ | AE19: =AZ7 -> 1.14 | AH19: Normal Price £ | AO19: =AZ13 -> 0.8
Y20: Buy 1 get 1 free | AH20: Buy 1 get one 1/2 price | AZ20: =CONCATENATE(AZ21,BA22) -> 125g
AZ21: =AZ22/2 -> 125
AZ22: =ROUND(RAND()*(18-4)+4,0)*50 -> 250 | BA22: g
AZ23: =ROUND(RAND()*(2.4-1.25)+1.25,1)*2 -> 2.6 | BA23: Full supermarket 1
C24: Q5. | E24: A supermarket is doing special deals on instant coffee. | AZ24: =ROUND(RAND()*(4-1)+1,0)*5 -> 10
E25: =" Shannon is looking to buy "&AZ22&" g worth of coffee." -> Shannon is looking to buy 250 g worth of coffee. | AZ25: =AZ23-AZ24/100*AZ23 -> 2.34
AZ26: =AZ22-50 -> 200
E27: Calculate which deal is the best OR are they both the same. | AZ27: =AZ22-AZ26 -> 50
AZ28: =AZ25 -> 2.34 | BA28: Price for 1
E29: Deal 1 price is £ | AZ29: =ROUND(RAND()*(1-0)+0,0) -> 0
AZ30: =ROUND(IF(AZ29=0,(2*AZ28+ROUND(RAND()*(0.05-0.01)+0.01,2)),(2*AZ28-ROUND(RAND()*(0.05-0.01)+0.01,2))),2) -> 4.71
E31: Deal 2 price is £
AB33: =AZ20 -> 125g | AL33: =AZ26&" g" -> 200 g
AL34: =" + "&AZ27&"g Free" -> + 50g Free
AB35: ="Deal 1" -> Deal 1 | AL35: ="Deal 2" -> Deal 2 | AZ35: =2*AZ28 -> 4.68
AB36: Was £ | AE36: =AZ23 -> 2.6 | AL36: Price £ | AO36: =AZ30 -> 4.71 | AZ36: =AZ30 -> 4.71
AB37: ="Now "&AZ24&" % OFF" -> Now 10 % OFF
AZ38: =ROUND(RAND()*(2-1)+1,0)*100 -> 200
AZ39: =ROUND(RAND()*(9-2)+2,0) -> 4 | BA39: l
AZ40: =ROUND(RAND()*(2.4-1.25)+1.25,1) -> 2 | BA40: Full supermarket 1
C41: Q6. | E41: A supermarket is doing special deals on Orange juice.
E42: =" Christopher is looking to buy "&AZ39&" litres of Orange juice for an Athletic's competition." -> Christopher is looking to buy 4 litres of Orange juice for an Athletic's competition.
E44: Calculate which deal is the best OR are they both the same.
AZ45: =ROUND(AZ38/1000*AZ40,2) -> 0.4 | BA45: Price for 1
E46: Deal 1 price is £ | AZ46: =ROUND(RAND()*(1-0)+0,0) -> 1
AZ47: =ROUND(IF(AZ46=0,(AZ45+ROUND(RAND()*(0.03-0.01)+0.01,2)),(AZ45-ROUND(RAND()*(0.03-0.01)+0.01,2))),1) -> 0.4
E48: Deal 2 price is £
AB50: 1 litre | AL50: =AZ38&" ml" -> 200 ml
AB52: ="Deal 1" -> Deal 1 | AL52: ="Deal 2" -> Deal 2 | AZ52: =AZ39*AZ40 -> 8
AB53: Price £ | AF53: =AZ40 -> 2 | AL53: Price £ | AO53: =AZ47 -> 0.4 | AZ53: =AZ39*1000/AZ38*AZ47 -> 8
